Cogmind - Beta 13 @@@ ROGUE MODE // 2024.04.12 @ 09:41:23 Player: Bean Result: Core destroyed Performance ------------- Evolutions (1) 500 Regions Visited (2) 400 Robots Destroyed (21) 105 Value Destroyed (320) 320 Prototype IDs (1) 20 Alien Tech Used (0) 0 Bonus (0) 0 TOTAL SCORE: 1345 Bonus ------- None Cogmind --------- Core Integrity 0/400 Matter 234/300 Energy 137/250 System Corruption 0% Temperature Critical (545) Movement Core (500) Ox9 Location -9/Materials Parts ------- > --- POWER (1) -------- Ion Engine > --- PROPULSION (2) --- (None) > --- UTILITY (4) ------ Medium Storage Unit Terrain Scan Processor Hardened Light Armor Plating Hardened Light Armor Plating > --- WEAPON (2) ------- Beam Rifle > --- INVENTORY (10) --- Ion Engine Light Ion Engine Aluminum Leg Mining Laser Peak State ------------ > --- POWER ------------ Light Nuclear Core > --- PROPULSION ------- Aluminum Leg Aluminum Leg > --- UTILITY ---------- Heat Sink Medium Storage Unit Improved Terrain Scanner Terrain Scan Processor > --- WEAPON ----------- Medium Laser Shotgun > --- INVENTORY -------- Ion Engine Ion Engine Light Ion Engine Aluminum Leg Aluminum Leg Beam Rifle Light Assault Rifle Mining Laser [Rating: 15] Favorites ----------- Power Ion Engine Engine Ion Engine Power Core Light Nuclear Core Propulsion Aluminum Leg Leg Aluminum Leg Utility Improved Terrain Scanner Device Improved Terrain Scanner Storage Medium Storage Unit Processor Terrain Scan Processor Protection Hardened Light Armor Plating Weapon Mining Laser Energy Gun Medium Laser Ballistic Gun Shotgun Special Weapon Mining Laser Build | -11 -10 -9 ------- Run | Yrd Mat Mat Slots Evolved 2 | . . 2 Power . | . . . Propulsion . | . . . Utility 2 | . . 2 Weapon . | . . . Parts Attached 31 | 9 5 17 Power 4 | 1 . 3 Engine 3 | 1 . 2 Core 1 | . . 1 Reactor . | . . . Propulsion 4 | 2 . 2 Treads . | . . . Leg 4 | 2 . 2 Wheel . | . . . Hover . | . . . Flight . | . . . Utility 10 | 3 2 5 Device 4 | 2 . 2 Storage 3 | 1 1 1 Processor 1 | . 1 . Hackware . | . . . Protection 2 | . . 2 Artifact . | . . . Weapon 13 | 3 3 7 Energy Gun 7 | 1 2 4 Energy Cannon . | . . . Ballistic Gun 3 | 1 . 2 Ballistic Cannon . | . . . Launcher . | . . . Special Weapon 3 | 1 1 1 Impact Weapon . | . . . Slashing Weapon . | . . . Piercing Weapon . | . . . Special Melee Weapon . | . . . Unidentified Prototypes 1 | . . 1 Parts Lost 15 | . . 15 Power 2 | . . 2 Propulsion 4 | . . 4 Utility 3 | . . 3 Weapon 6 | . . 6 Highest Loss Streak 10 | . . 10 To Critical Strikes . | . . . Average Slot Usage (%) 89 | . 94 87 Engine 7 | . 14 4 Core 3 | . . 5 Leg 22 | . 28 19 Device 14 | . 18 13 Storage 8 | . 2 11 Processor 9 | . 7 11 Protection 1 | . . 1 Energy Gun 11 | . 14 10 Ballistic Gun 5 | . . 8 Special Weapon 4 | . 8 2 Naked Turns . | . . . Heaviest Build 22 | 13 20 22 Greatest Support 20 | 20 20 20 Greatest Overweight (x) 1 | . . 1 Average Overweight (x) . | . . . Largest Inventory Capacity 10 | 8 10 10 Average Capacity 6 | 5 5 10 Most Carried 9 | 5 5 9 Average Carried 5 | 4 4 6 Final Capacity 10 | 5 5 10 Final Carried 5 | 5 5 4 Class Distribution -------------------- 91% | Mutant 8% | Scavenger-Mutant Dominant Class ---------------- Mutant | -10/Materials Mutant | -9/Materials Resources | -11 -10 -9 ----------- Run | Yrd Mat Mat Matter Collected 484 | 258 61 165 Remotely . | . . . Salvage Created 438 | 15 107 316 Parts 50 | 5 15 30 Haulers Intercepted . | . . . Recyclers Shooed . | . . . Parts Field Recycled . | . . . Retrieved Matter . | . . . Parts Self-Destructed . | . . . Prevented . | . . . Kills | -11 -10 -9 ------- Run | Yrd Mat Mat Combat Hostiles Destroyed 16 | . 4 12 Guns 15 | . 3 12 Cannons 1 | . 1 . Classes Destroyed 6 | 1 3 2 Builder 2 | . 2 . Tunneler 2 | 1 . 1 Watcher 1 | . . 1 Swarmer 12 | . 3 9 Grunt 3 | . 1 2 Sentry 1 | . . 1 Best Kill Streak 6 | 1 5 6 Combat Bots Only 6 | . 3 6 Max Kills in Single Turn 2 | 1 1 2 Gunslinging . | . . . Exploded . | . . . Melee . | . . . Uniques/NPCs Destroyed . | . . . Combat | -11 -10 -9 -------- Run | Yrd Mat Mat Hostile Shots Fired 208 | . 12 196 Missed 50 | . 3 47 Damage Taken 1839 | . 78 1761 Core 424 | . 13 411 Absorbed by Shields . | . . . Core Remaining (%) 97 | 100 94 . Volleys Fired 122 | 64 12 46 Largest 2 | 1 2 2 Hottest 150 | 100 150 76 Shots Fired 164 | 64 20 80 Gun 90 | 1 14 75 Cannon . | . . . Launcher . | . . . Special 74 | 63 6 5 Kinetic 39 | . . 39 Thermal 113 | 64 14 35 Explosive . | . . . Electromagnetic 12 | . 6 6 Robot Hit Streak 12 | 1 6 12 Robot Miss Streak 7 | . 2 7 Penetration Max . | . . . Secondary Targets 6 | . 2 4 Max Gunslinging Chain 1 | . 1 1 Shots Hit Robots 66 | 1 9 56 Core Hits 29 | 1 6 22 Critical Kills . | . . . Critical Parts Destroyed 1 | . . 1 Critical Strikes 2 | . 1 1 Burn 1 | . 1 . Destroy 1 | . . 1 Melee Attacks . | . . . Impact . | . . . Slashing . | . . . Piercing . | . . . Sneak Attacks . | . . . Combat Hostiles . | . . . Follow-up Attacks . | . . . Damage Inflicted 871 | 12 144 715 Guns 777 | 12 96 669 Cannons . | . . . Explosions . | . . . Melee . | . . . Ramming . | . . . Kinetic 323 | . . 323 Thermal 460 | 12 109 339 Explosive . | . . . Electromagnetic 88 | . 35 53 Impact . | . . . Slashing . | . . . Piercing . | . . . Highest Corruption . | . . . Average Corruption . | . . . Corruption Purged . | . . . Corruption Blocked . | . . . Overload Shots . | . . . Overflow Damage . | . . . Projectiles . | . . . Explosions . | . . . Melee . | . . . Knockbacks . | . . . Impact . | . . . Kinetic . | . . . Secondary . | . . . Self-Inflicted Damage . | . . . Shots . | . . . Rammed . | . . . Targets Rammed . | . . . Kicked . | . . . Crushed . | . . . Highest Temperature 545 | 236 180 545 Average Temperature 88 | 83 60 137 Received Heat Transfer 501 | . 18 483 Effects 4 | . . 4 Shutdowns 1 | . . 1 Energy Bleed 1 | . . 1 Matter Decay 1 | . . 1 Damage (core) 1 | . . 1 Siege Activations . | . . . Robots Corrupted . | . . . Combat Hostiles . | . . . Parts Fried 1 | . . 1 Impact Corruptions . | . . . Robots Melted . | . . . Combat Hostiles . | . . . Parts Melted 2 | . 1 1 Heat Transferred 1358 | 37 359 962 Parts Sabotaged . | . . . Parts Stolen . | . . . Parts Stripped . | . . . Power Chain Reactions . | . . . Alert | -11 -10 -9 ------- Run | Yrd Mat Mat Peak Influence 318 | 5 127 318 Initial 53 | . . 53 Average 28 | . 60 128 Maximum Alert Level 1 | . . 1 Low Security (%) 96 | 100 100 80 Level 1 3 | . . 19 Level 2 . | . . . Level 3 . | . . . Level 4 . | . . . Level 5 . | . . . High Security . | . . . Max Security . | . . . Squads Dispatched 1 | . 1 . Investigation 1 | . 1 . Extermination . | . . . Reinforcement . | . . . Assault . | . . . Garrison . | . . . Intercept . | . . . Searches Triggered . | . . . Construction Impeded . | . . . Haulers Reinforced . | . . . Active Scanning Responses . | . . . Cargo Convoy Interrupts . | . . . Stealth | -11 -10 -9 --------- Run | Yrd Mat Mat Distress Signals 1 | . . 1 Communications Jammed . | . . . Distress Signals . | . . . Times Spotted 25 | . 5 20 Peak Tracking Total 9 | . 3 9 Tactical Retreats 2 | . 1 1 Traps | -11 -10 -9 ------- Run | Yrd Mat Mat Traps Triggered 1 | . 1 . Indirectly . | . . . Trap Hack Attempts . | . . . Triggered . | . . . Disarmed . | . . . Reprogrammed . | . . . Reused . | . . . Traps Extracted . | . . . Installed . | . . . Triggered . | . . . Machines | -11 -10 -9 ---------- Run | Yrd Mat Mat Machines Disabled . | . . . Max in Single Turn . | . . . Machines Repaired . | . . . Machines Dismantled . | . . . Machines Sabotaged . | . . . Overloaded Fab Kills . | . . . Hacking | -11 -10 -9 --------- Run | Yrd Mat Mat Machines Accessed 6 | . 1 5 Terminals 5 | . . 5 Fabricators . | . . . Repair Stations . | . . . Recycling Units 1 | . 1 . Scanalyzers . | . . . Garrison Access . | . . . Total Hacks 10 | . 1 9 Successful 7 | . 1 6 Failed 3 | . . 3 Catastrophic . | . . . Database Lockouts . | . . . Manual 8 | . . 8 Terminals 9 | . . 9 Fabricators . | . . . Repair Stations . | . . . Recycling Units 1 | . 1 . Scanalyzers . | . . . Garrison Access . | . . . Terminal Hacks 1 | . . 1 Terminal Index 1 | . . 1 Fabricator Hacks . | . . . Repair Station Hacks . | . . . Recycling Unit Hacks 1 | . 1 . Report Inventory 1 | . 1 . Scanalyzer . | . . . Garrison Access Hacks . | . . . Unauthorized Hacks 5 | . . 5 Terminals 5 | . . 5 Botnet 5 | . . 5 Fabricators . | . . . Repair Stations . | . . . Recycling Units . | . . . Scanalyzers . | . . . Garrison Access . | . . . Data Cores Recovered . | . . . Used . | . . . Hacking Detections 3 | . . 3 Full Trace Events . | . . . Feedback Events . | . . . Feedback Blocked . | . . . Robot Schematics Acquired . | . . . Robots Built . | . . . Authchips . | . . . Time . | . . . Total Robot Build Rating . | . . . Part Schematics Acquired . | . . . Parts Built . | . . . Authchips . | . . . Time . | . . . Total Part Build Rating . | . . . Parts Repaired . | . . . Time . | . . . Parts Recycled . | . . . Recycled Matter . | . . . Retrieved Matter . | . . . Retrieved Components . | . . . Parts Scanalyzed . | . . . Part Schematics Acquired . | . . . Parts Damaged . | . . . Bothacking | -11 -10 -9 ------------ Run | Yrd Mat Mat Used RIF Installer . | . . . Robots Hacked . | . . . Non-combat . | . . . Combat . | . . . Robot Hacks Applied . | . . . Relay Couplers Released . | . . . Fabnet Peak Effective % . | . . . Robots Rewired . | . . . Allies Hacked . | . . . Hacks Repelled . | . . . Allies | -11 -10 -9 -------- Run | Yrd Mat Mat Total Allies . | . . . Largest Group . | . . . Highest-Rated Group . | . . . Highest-Rated Ally . | . . . Total Orders . | . . . Ally Attacks . | . . . Total Damage . | . . . Kills . | . . . Allies Corrupted . | . . . Allies Melted . | . . . Intel | -11 -10 -9 ------- Run | Yrd Mat Mat Robot Analysis Total . | . . . Derelict Logs Recovered . | . . . Drone Launches . | . . . Drone Recoveries . | . . . Exploration | -11 -10 -9 ------------- Run | Yrd Mat Mat Turns Passed 2728 | 2019 238 471 Spaces Moved 1011 | 680 148 183 Core 5 | 5 . . Treads . | . . . Legs 1006 | 675 148 183 Wheels . | . . . Hover . | . . . Flight . | . . . Fastest Speed 50 | 50 120 120 Average Speed 126 | 119 120 160 Slowest Speed 190 | 120 120 190 Overloaded Moves . | . . . Propulsion Burnouts . | . . . Robots Hopped . | . . . Cave-ins Triggered . | . . . Exploration Rate (%) 39 | 67 25 26 Regions Visited 2 Branch Regions . Pre-discovered Areas . | . . . Known Exits Taken . | . . . Unknown Exits Taken 2 | 1 1 . Scrap Searched . | . . . Spaces Dug 27 | 23 4 . Terrain Destroyed 33 | 29 4 . Melee . | . . . Projectile 33 | 29 4 . AOE . | . . . Terrain Rammed . | . . . Walls Destroyed . | . . . Machines Disabled . | . . . Actions | -11 -10 -9 --------- Run | Yrd Mat Mat Total 2153 | 1696 176 281 Wait 961 | 932 7 22 Move 1009 | 679 147 183 Hop . | . . . Pick Up 27 | 11 3 13 Fast Attach . | . . . Attach 22 | 7 1 14 Detach 1 | 1 . . Swap 9 | 2 4 3 Drop 2 | . 2 . Fire 122 | 64 12 46 Melee . | . . . Ram . | . . . Kick . | . . . Crush . | . . . Escape Stasis . | . . . Rewire . | . . . Trap . | . . . Miscellaneous . | . . . Route ------- -11/Scrapyard -10/Materials -9/Materials (discovered 1 exit: [*Min]) History --------- Turn | Location | Event 25 | -11/Scrapyard | Discovered new exit (range 15) 2020 | -11/Scrapyard | Entered Materials 2021 | -10/Materials | Build established: Mutant 2248 | -10/Materials | Discovered new exit (range 7) 2258 | -10/Materials | Entered another Materials area 2258 | -9/Materials | Evolved 2 slots: Utility x2 2401 | -9/Materials | Lost 5 parts (1p1n1u2w) 2586 | -9/Materials | Discovered new exit (range 15) 2616 | -9/Materials | Core integrity fell below 50% 2700 | -9/Materials | Core integrity fell below 20% 2730 | -9/Materials | Core destroyed Last Messages --------------- Heat Sink destroyed. Acquired 1 matter. R-06 Scavenger collects Lgt. Ion Engine. R-06 Scavenger collects Lgt. Assault Rifle. R-06 Scavenger collects Flight Unit. Imp. EM Shotgun destroyed. R-06 Scavenger collects Flight Unit. Critical hit (Burn: +37). Hadron Collector disabled. Aluminum Leg destroyed. Y-45 Defender heat damages Heat Sink. K-01 Serf collects debris. Overheating: Energy bleed (-21). R-06 Scavenger collects Lgt. Ion Engine. Melted Hvy. Assault Rifle. Power failure, Ion Engine shutdown. K-01 Serf collects debris. Overheating: Matter decay (-25). Lgt. Assault Rifle destroyed. Overheating: Core damaged (-48). Map ----- +----------------------------------------------------+ | ????????????????????????????????????????????????? | | ????????????????????????????????????????????????? | | ????????????????????????????????????????????????? | | ????????????????????????????????????????????????? | | ????????????????????????????????????????????????? | | ????????????????????????# ??????????#???????????? | | ????????????????????????# ????????? #???????????? | | ????????????????###+????# ????????? #???????????? | | ????????????????# ???# #??????? #???????????? | | ??????????????? ???# #??????? #???????????? | | ??????????????? ??# #?????? #???????????? | | ??????????????? ### ####### #####???????? | | ????????????????# !!#???????? | | ???????????????### !!#???????? | | ???????????????#?# ^ **#???????? | | ??????????## ??# T **#???????? | | ???????## ?? ?# ^ """ a ==#???????? | | ????????# ?# # """ ==#???????? | | ?? ????# ##?? + """ %[ #####???????? | | ?######## #? ? ?# """Y %% #???????????? | | ?? ^ #? ?? ?# ^ #???????????? | | # ? ?# ^ % ###+#???????????? | | ^ / ? ??#^ ! "" #?? ????????????? | | # ? ?## ! "" # ??????????????? | | ### """ ######## ! k """ + ""????????????? | | # """ r @ "" #?""????????????? | | """ Y # ? ????????????? | | ^ #???????????????? | | ? ^ #"T"####+###??????????????? | | "# """ #"""#? ???????????????? | | "# """ ###############? ? ""????????????? | | ""# """ ######### #? ? T"##??????????? | | ?## # ? ????????????????? | | ## % T # ? ? ????????????? | | # [% # ? ?? ????????????? | | # [%####+########### # ????? ????????????? | | ?# ## #?###########???? ???????????????? | | #=*## #########?##?#???##???????????????? | | # ## ######?###?#####?#?#??????????????? | | # ## / ########?##?#?????#???????????????? | | ?# ## ###########??####?##??????????????? | | ## ###?######?#?##?##????????????????? | | ?## ## #############?#?###?##????????????? | | ??# ## ###########???##?#?#??????????????? | | ?## ## ##########??#???###?#?#???????????? | | ###+######+######????##?######????#?????????????? | | ### ###?###########?#???#?##?????????????? | | # *####### ####??#?#####??????????? | | # |%= % #####??#???#???????????? | | + ! = T ##????##???????????????? | +----------------------------------------------------+ Best States ------------- Heat Dissipation 38 Energy Generation 14 Energy Capacity 250 Matter Stores 300 Matter Capacity 300 Sight Range 16 Terrain Scan Range 16 Terrain Scan Density 85 Armor Coverage 300 Evasion (%) 55 Item Schematics ----------------- None Robot Schematics ------------------ None Fabricated ------------ Nothing Alien Tech Used ----------------- None Achievements -------------- None Challenges ------------ None Game ------ Seed MetaPhysicsRifle Manual? 0 Play Time 00:17:34 Cumulative 12.8 hours Start 2024.04.12 @ 09:10:52 End 2024.04.12 @ 09:41:23 Sessions 1 Manual Loads 0 Difficulty Rogue Special Mode None Game No. 32 Rogue 32 Adventurer 0 Explorer 0 Win Type - Total 0 Types 0/0/0/0/0/0/0/0/0 Lore% 19 Gallery% 23 Achievement% 21 Wizard Run 0 Options --------- Layout 2 ASCII 0 Keyboard 0 Movement Numpad Keybinds 0 Fullscreen 1 Font 24/Smallcaps Map View 50x44 Zoom Use 0% Tactical HUD 0 Map Filters NONE Filters NONE Steam 1 RUN: 97269fee-1599-4ee4-a6d7-4003dcb61376